fUST/lending_fUST_20240910
["ID","MTS","AMOUNT","RATE_DAILY","PERIOD"]
[337681485,1725951238686,2023.55244774,0.0001701,2]
[337681488,1725951418263,853.61,0.0001701,2]
[337681492,1725951603709,500.0,0.0001,2]
[337681493,1725951604684,500.0,0.0001,2]
[337681494,1725951605074,500.0,0.0001,2]
[337681495,1725951605482,500.0,0.0001,2]
[337681496,1725951605883,500.0,0.0001,2]
[337681497,1725951606799,471.02133074,0.0001,2]
[337681505,1725951853460,25000.0,0.00028,120]
[337681520,1725952168145,-1086.69809431,0.00017382,2]
[337681547,1725952232731,-237.82311429,0.00017382,2]
[337681548,1725952232741,-165.347591,0.00017769,2]
[337681549,1725952232751,-280.19731549,0.00017808,2]
[337681550,1725952232763,-219.80268451,0.00017808,2]
[337681551,1725952232772,-250.0,0.00017919,2]
[337681552,1725952232782,-30.1492794,0.00017923,2]
[337681561,1725952238824,-135.1983116,0.00017923,2]
[337681562,1725952238833,-165.347591,0.00018077,2]
[337681563,1725952238846,-165.347591,0.00018232,2]
[337681564,1725952238855,-165.347591,0.00018386,2]
[337681565,1725952238864,-165.347591,0.0001854,2]
[337681566,1725952238875,-153.0,0.00018541,2]
[337681567,1725952238884,-208.3247076,0.00018578,2]
[337681568,1725952238895,-416.5310012,0.00018578,2]
[337681569,1725952238905,-208.3247076,0.00018578,2]
[337681570,1725952238914,-153.0,0.00018678,2]
[337681571,1725952238924,-208.3247076,0.00018678,2]
[337681572,1725952238933,-165.347591,0.00018695,2]
[337681573,1725952238943,-300.0,0.00018988,2]
[337681574,1725952238953,-218.48794081,0.00018989,2]
[337681575,1725952238962,-500.0,0.00018989,2]
[337681576,1725952238972,-483.61272386,0.00018989,2]
[337681577,1725952238982,-374.27977956,0.00018989,2]
[337681578,1725952238992,-500.0,0.00018989,2]
[337681579,1725952239003,-500.0,0.00018989,2]
[337681580,1725952239012,-163.18042081,0.00018989,2]
[337681581,1725952239022,-500.0,0.00018989,2]
[337681582,1725952239031,-500.0,0.00018989,2]
[337681583,1725952239041,-500.0,0.00018989,2]
[337681584,1725952239050,-500.0,0.00018989,2]
[337681585,1725952239060,-173.43617169,0.00018989,2]
[337681586,1725952239069,-500.0,0.00018989,2]
[337681587,1725952239079,-500.0,0.00018989,2]
[337681588,1725952239088,-500.0,0.00018989,2]
[337681589,1725952239099,-500.0,0.00018989,2]
[337681590,1725952239109,-500.0,0.00018989,2]
[337681591,1725952239118,-500.0,0.00018989,2]
[337681592,1725952239128,-500.0,0.00018989,2]
[337681593,1725952239137,-500.0,0.00018989,2]
[337681594,1725952239147,-231.47006231,0.00018989,2]
[337681595,1725952239156,-500.0,0.00018989,2]
[337681596,1725952239165,-500.0,0.00018989,2]
[337681597,1725952239175,-500.0,0.00018989,2]
[337681598,1725952239185,-500.0,0.00018989,2]
[337681599,1725952239194,-500.0,0.00018989,2]
[337681600,1725952239204,-500.0,0.00018989,2]
[337681601,1725952239213,-500.0,0.00018989,2]
[337681602,1725952239222,-500.0,0.00018989,2]
[337681603,1725952239232,-500.0,0.00018989,2]
[337681604,1725952239242,-500.0,0.00018989,2]
[337681605,1725952239252,-500.0,0.00018989,2]
[337681606,1725952239262,-500.0,0.00018989,2]
[337681607,1725952239271,-500.0,0.00018989,2]
[337681608,1725952239281,-500.0,0.00018989,2]
[337681609,1725952239291,-423.14700623,0.00018989,2]
[337681610,1725952239301,-21126.9804327,0.0001899,3]
[337681613,1725952240753,-2566.78663445,0.0001889,2]
[337681614,1725952240803,-601.07612977,0.0001889,2]
[337681615,1725952240813,-244029.9926603,0.0001899,3]
[337681616,1725952240822,-294637.10113,0.0001899,3]
[337681617,1725952240833,-140096.11,0.00019,2]
[337681618,1725952240843,-150.112233,0.00019,2]
[337681619,1725952240854,-150.112233,0.00019,2]
[337681620,1725952240863,-150.112233,0.00019,2]
[337681621,1725952240874,-330.14662195,0.00019036,2]
[337681622,1725952240885,-150.112233,0.000191,2]
[337681623,1725952240894,-150.112233,0.000191,2]
[337681624,1725952240904,-150.112233,0.000191,2]
[337681625,1725952240914,-150.112233,0.000191,2]
[337681626,1725952240924,-1000.0,0.00019138,2]
[337681627,1725952240933,-500.0,0.00019178,2]
[337681628,1725952240942,-500.0,0.00019178,2]
[337681629,1725952240952,-189.969775,0.00019178,2]
[337681630,1725952240962,-151.0,0.000192,2]
[337681631,1725952240972,-150.112233,0.000192,2]
[337681632,1725952240982,-150.112233,0.000192,2]
[337681633,1725952240992,-150.112233,0.000192,2]
[337681634,1725952241002,-132578.486546,0.00019228,3]
[337681635,1725952241011,-294637.10113,0.00019228,3]
[337681636,1725952241222,-151.0,0.00019228,2]
[337681637,1725952241232,-151.0,0.00019228,2]
[337681638,1725952241243,-667.969027,0.00019228,2]
[337681639,1725952241254,-667.969027,0.00019228,2]
[337681640,1725952241263,-895.409776,0.00019228,2]
[337681641,1725952241272,-667.969027,0.00019228,2]
[337681642,1725952241282,-895.409776,0.00019228,2]
[337681643,1725952241292,-667.969027,0.00019228,2]
[337681644,1725952241301,-895.409776,0.00019228,2]
[337681645,1725952241310,-895.409776,0.00019228,2]
[337681646,1725952241321,-151.0,0.00019228,2]
[337681647,1725952241331,-151.0,0.00019228,2]
[337681648,1725952241340,-151.0,0.00019228,2]
[337681649,1725952241350,-151.0,0.00019228,2]
[337681650,1725952241360,-2000.0,0.00019237,2]
[337681651,1725952241369,-2000.0,0.00019237,2]
[337681652,1725952241381,-2000.0,0.00019237,2]
[337681653,1725952241390,-2000.0,0.00019237,2]
[337681654,1725952241399,-599.92987557,0.00019237,2]
[337681655,1725952241409,-479145.798743,0.00019248,2]
[337681656,1725952241420,-151.0,0.00019248,2]
[337681657,1725952241430,-151.0,0.00019248,2]
[337681658,1725952241441,-151.0,0.00019248,2]
[337681659,1725952241450,-151.0,0.00019248,2]
[337681660,1725952241461,-877.706456,0.00019248,2]
[337681661,1725952241471,-877.706456,0.00019248,2]
[337681662,1725952241481,-151.0,0.00019248,2]
[337681663,1725952241490,-152.127723,0.00019248,2]
[337681664,1725952241500,-855.24483,0.00019248,2]
[337681665,1725952241510,-151.0,0.00019248,2]
[337681666,1725952241522,-855.24483,0.00019248,2]
[337681667,1725952241534,-493.720946,0.00019248,2]
[337681668,1725952241545,-493.720946,0.00019248,2]
[337681669,1725952241556,-1610.704309,0.00019248,2]
[337681670,1725952241565,-1610.704309,0.00019248,2]
[337681671,1725952241574,-1001.737046,0.00019248,2]
[337681672,1725952241585,-1001.737046,0.00019248,2]
[337681673,1725952241595,-151.0,0.00019248,2]
[337681674,1725952241606,-667.969027,0.00019248,2]
[337681675,1725952241616,-895.409776,0.00019248,2]
[337681676,1725952241625,-667.969027,0.00019248,2]
[337681677,1725952241634,-895.409776,0.00019248,2]
[337681678,1725952241644,-190.664993,0.00019248,2]
[337681679,1725952241654,-151.0,0.00019248,2]
[337681680,1725952241663,-501.99078751,0.00019273,2]
[337681681,1725952241672,-244.83792288,0.00019273,2]
[337681682,1725952241681,-500.0,0.00019273,2]
[337681683,1725952241692,-500.0,0.00019273,2]
[337681684,1725952241701,-641.01249397,0.00019273,2]
[337681685,1725952241710,-604.90065386,0.00019273,2]
[337681686,1725952241720,-500.0,0.00019273,2]
[337681687,1725952241729,-500.0,0.00019273,2]
[337681688,1725952241739,-500.0,0.00019273,2]
[337681689,1725952241748,-500.0,0.00019273,2]
[337681690,1725952241758,-344.94333047,0.00019273,2]
[337681691,1725952241767,-152.202237,0.00019282,2]
[337681692,1725952241777,-151.0,0.00019282,2]
[337681693,1725952241786,-151.0,0.00019282,2]
[337681694,1725952241795,-151.0,0.00019282,2]
[337681695,1725952241804,-151.0,0.00019282,2]
[337681696,1725952241815,-1003.71641,0.00019282,2]
[337681697,1725952241825,-151.0,0.00019282,2]
[337681698,1725952241834,-363.79275,0.00019282,2]
[337681699,1725952241844,-363.79275,0.00019282,2]
[337681700,1725952241853,-151.0,0.00019282,2]
[337681701,1725952241863,-151.0,0.00019282,2]
[337681702,1725952241873,-151.0,0.00019282,2]
[337681703,1725952241883,-151.0,0.00019282,2]
[337681704,1725952241893,-151.0,0.00019282,2]
[337681705,1725952241903,-151.0,0.00019282,2]
[337681706,1725952241914,-151.0,0.00019282,2]
[337681707,1725952241924,-877.706456,0.00019282,2]
[337681708,1725952241936,-877.706456,0.00019282,2]
[337681709,1725952241947,-151.0,0.00019282,2]
[337681710,1725952241956,-855.24483,0.00019282,2]
[337681711,1725952241966,-151.0,0.00019282,2]
[337681712,1725952241976,-855.24483,0.00019282,2]
[337681713,1725952241985,-493.720946,0.00019282,2]
[337681714,1725952241995,-493.720946,0.00019282,2]
[337681715,1725952242005,-1610.704309,0.00019282,2]
[337681716,1725952242014,-151.0,0.00019282,2]
[337681717,1725952242025,-151.0,0.00019282,2]
[337681718,1725952242034,-1610.704309,0.00019282,2]
[337681719,1725952242044,-296.494994,0.00019282,2]
[337681720,1725952242053,-151.0,0.00019282,2]
[337681721,1725952242062,-1001.737046,0.00019282,2]
[337681722,1725952242072,-1001.737046,0.00019282,2]
[337681723,1725952242082,-151.0,0.00019282,2]
[337681724,1725952242092,-788.49286,0.00019282,2]
[337681725,1725952242102,-788.49286,0.00019282,2]
[337681726,1725952242112,-579.4213,0.00019282,2]
[337681727,1725952242121,-579.4213,0.00019282,2]
[337681728,1725952242131,-151.0,0.00019282,2]
[337681729,1725952242140,-151.0,0.00019282,2]
[337681730,1725952242149,-667.969027,0.00019282,2]
[337681731,1725952242159,-151.0,0.00019282,2]
[337681732,1725952242168,-895.409776,0.00019282,2]
[337681733,1725952242177,-667.969027,0.00019282,2]
[337681734,1725952242187,-895.409776,0.00019282,2]
[337681735,1725952242196,-151.0,0.00019282,2]
[337681736,1725952242206,-150.112233,0.000193,2]
[337681737,1725952242215,-150.112235,0.000193,2]
[337681738,1725952242224,-150.112233,0.000193,2]
[337681739,1725952242233,-150.112233,0.000193,2]
[337681740,1725952242243,-150.112233,0.000193,2]
[337681741,1725952242253,-5977.56152927,0.0001931,2]
[337681742,1725952242264,-151.0,0.00019372,2]
[337681743,1725952242273,-151.0,0.00019372,2]
[337681744,1725952242283,-151.0,0.00019398,2]
[337681745,1725952242293,-151.0,0.00019402,2]
[337681746,1725952242303,-151.0,0.00019402,2]
[337681747,1725952242313,-151.0,0.00019402,2]
[337681748,1725952242322,-151.0,0.00019402,2]
[337681749,1725952242331,-151.0,0.00019402,2]
[337681750,1725952242341,-151.0,0.00019402,2]
[337681751,1725952242350,-151.0,0.00019402,2]
[337681752,1725952242359,-151.0,0.00019402,2]
[337681753,1725952242368,-151.0,0.00019402,2]
[337681754,1725952242379,-151.0,0.00019402,2]
[337681755,1725952242393,-151.0,0.00019402,2]
[337681756,1725952242403,-151.561689,0.00019402,2]
[337681757,1725952242412,-151.0,0.00019402,2]
[337681758,1725952242422,-151.0,0.00019402,2]
[337681759,1725952242432,-151.0,0.00019402,2]
[337681760,1725952242442,-151.0,0.00019402,2]
[337681761,1725952242452,-151.0,0.00019486,2]
[337681762,1725952242463,-151.0,0.00019486,2]
[337681763,1725952242473,-151.0,0.00019486,2]
[337681764,1725952242483,-151.0,0.00019486,2]
[337681765,1725952242493,-151.0,0.00019486,2]
[337681766,1725952242504,-151.0,0.00019486,2]
[337681767,1725952242513,-151.0,0.00019486,2]
[337681768,1725952242523,-151.0,0.00019486,2]
[337681769,1725952242534,-151.0,0.00019486,2]
[337681770,1725952242543,-151.0,0.00019486,2]
[337681771,1725952242555,-208.3247076,0.000195,2]
[337681772,1725952242565,-208.3247076,0.000195,2]
[337681773,1725952242574,-208.3247076,0.000195,2]
[337681774,1725952242583,-243.9677,0.00019527,2]
[337681775,1725952242593,-1317.5926206,0.0001955,2]
[337681776,1725952242603,-151.0,0.0001955,2]
[337681777,1725952242612,-12040.80565269,0.00019564,2]
[337681778,1725952242623,-407.32737956,0.00019564,2]
[337681779,1725952242634,-151.0,0.00019564,2]
[337681780,1725952242643,-151.0,0.00019564,2]
[337681781,1725952242653,-152.106742,0.00019564,2]
[337681782,1725952242664,-151.0,0.00019564,2]
[337681783,1725952242673,-151.0,0.00019564,2]
[337681784,1725952242683,-151.0,0.00019564,2]
[337681785,1725952242692,-151.0,0.00019564,2]
[337681786,1725952242701,-151.0,0.00019564,2]
[337681787,1725952242711,-151.0,0.00019564,2]
[337681788,1725952242721,-151.0,0.00019564,2]
[337681789,1725952242731,-809.437296,0.00019564,2]
[337681790,1725952242742,-151.0,0.00019564,2]
[337681791,1725952242751,-151.0,0.00019564,2]
[337681792,1725952242763,-809.437296,0.00019564,2]
[337681793,1725952242772,-151.0,0.00019564,2]
[337681794,1725952242782,-151.0,0.00019564,2]
[337681795,1725952242792,-151.0,0.00019564,2]
[337681796,1725952242802,-151.0,0.00019564,2]
[337681797,1725952242812,-151.0,0.00019564,2]
[337681798,1725952242822,-151.0,0.00019564,2]
[337681799,1725952242831,-151.0,0.00019564,2]
[337681800,1725952242841,-177.604543,0.00019564,2]
[337681801,1725952242852,-1003.71641,0.00019564,2]
[337681802,1725952242862,-650.092288,0.00019564,2]
[337681803,1725952242872,-650.092288,0.00019564,2]
[337681804,1725952242882,-153.588759,0.00019564,2]
[337681805,1725952242892,-363.79275,0.00019564,2]
[337681806,1725952242902,-363.79275,0.00019564,2]
[337681807,1725952242911,-221.971537,0.00019564,2]
[337681808,1725952242921,-151.0,0.00019564,2]
[337681809,1725952242931,-151.0,0.00019564,2]
[337681810,1725952242941,-151.0,0.00019564,2]
[337681811,1725952242951,-392.042557,0.00019564,2]
[337681812,1725952242961,-392.042557,0.00019564,2]
[337681813,1725952242970,-151.0,0.00019564,2]
[337681814,1725952242980,-151.0,0.00019564,2]
[337681815,1725952242990,-151.0,0.00019564,2]
[337681816,1725952243000,-877.706456,0.00019564,2]
[337681817,1725952243010,-877.706456,0.00019564,2]
[337681818,1725952243019,-151.0,0.00019564,2]
[337681819,1725952243029,-855.24483,0.00019564,2]
[337681820,1725952243038,-151.0,0.00019564,2]
[337681821,1725952243047,-855.24483,0.00019564,2]
[337681822,1725952243057,-493.720946,0.00019564,2]
[337681823,1725952243066,-493.720946,0.00019564,2]
[337681824,1725952243075,-1610.704309,0.00019564,2]
[337681825,1725952243084,-151.0,0.00019564,2]
[337681826,1725952243093,-151.0,0.00019564,2]
[337681827,1725952243103,-1610.704309,0.00019564,2]
[337681828,1725952243115,-151.0,0.00019564,2]
[337681829,1725952243126,-1001.737046,0.00019564,2]
[337681830,1725952243136,-1001.737046,0.00019564,2]
[337681831,1725952243146,-153.241316,0.00019564,2]
[337681832,1725952243156,-788.49286,0.00019564,2]
[337681833,1725952243165,-788.49286,0.00019564,2]
[337681834,1725952243174,-579.4213,0.00019564,2]
[337681835,1725952243184,-579.4213,0.00019564,2]
[337681836,1725952243198,-151.0,0.00019564,2]
[337681837,1725952243207,-151.0,0.00019564,2]
[337681838,1725952243217,-667.969027,0.00019564,2]
[337681839,1725952243226,-151.0,0.00019564,2]
[337681840,1725952243235,-895.409776,0.00019564,2]
[337681841,1725952243245,-667.969027,0.00019564,2]
[337681842,1725952243254,-895.409776,0.00019564,2]
[337681843,1725952243264,-151.0,0.00019564,2]
[337681844,1725952243273,-150.0,0.00019566,2]
[337681845,1725952243282,-500.0,0.00019566,2]
[337681846,1725952243292,-151.0,0.00019575,2]
[337681847,1725952243302,-151.0,0.00019575,2]
[337681848,1725952243311,-151.0,0.00019575,2]
[337681849,1725952243321,-151.0,0.00019575,2]
[337681850,1725952243330,-151.0,0.00019575,2]
[337681851,1725952243339,-151.0,0.00019575,2]
[337681852,1725952243348,-249.850415,0.00019575,2]
[337681853,1725952243357,-150.0,0.00019593,2]
[337681854,1725952243366,-500.0,0.00019593,2]
[337681855,1725952243379,-236.037116,0.000196,2]
[337681856,1725952243390,-151.0,0.000196,2]
[337681857,1725952243399,-151.0,0.000196,2]
[337681858,1725952243409,-151.0,0.000196,2]
[337681859,1725952243419,-151.0,0.000196,2]
[337681860,1725952243429,-151.0,0.000196,2]
[337681862,1725952243439,-151.0,0.000196,2]
[337681863,1725952243449,-214.910945,0.000196,2]
[337681864,1725952243462,-151.0,0.000196,2]
[337681865,1725952243471,-151.0,0.000196,2]
[337681866,1725952243481,-203.32992958,0.00019621,2]
[337681867,1725952243490,-617.78838769,0.00019621,2]
[337681868,1725952243500,-501.87216454,0.00019622,2]
[337681869,1725952243511,-151.0,0.0001965,2]
[337681870,1725952243521,-208.169155,0.000197,2]
[337681871,1725952243534,-150.112233,0.000198,2]
[337681872,1725952243544,-150.112233,0.000199,2]
[337681873,1725952243554,-150.112233,0.000199,2]
[337681874,1725952243566,-150.112233,0.000199,2]
[337681875,1725952243578,-151.0,0.0001999,2]
[337681876,1725952243588,-1019.6881613,0.0002,2]
[337681877,1725952243599,-19276.27388614,0.0002,2]
[337681885,1725952246975,-151.0,0.00019228,2]
[337681886,1725952246985,-151.0,0.00019228,2]
[337681887,1725952246995,-151.0,0.00019248,2]
[337681888,1725952247005,-500.0,0.00019273,2]
[337681889,1725952247015,-152.918631,0.00019282,2]
[337681890,1725952247024,-456.10562274,0.0002,2]
[337682257,1725952468166,2419.90945738,0.0001,2]
[337682258,1725952468203,8049.15680412,0.0001,2]
[337682329,1725952887113,-500.0,0.00017808,2]
[337682330,1725952887136,-1000.0,0.00018,2]
[337682331,1725952887158,-500.0,0.00018873,2]
[337682332,1725952887180,-500.0,0.00018873,2]
[337682333,1725952887201,-501.82517705,0.00018873,2]
[337682334,1725952887222,-500.0,0.00018873,2]
[337682335,1725952887244,-500.0,0.00018873,2]
[337682336,1725952887265,-300.0,0.00018878,2]
[337682337,1725952887288,-300.0,0.00018878,2]
[337682338,1725952887313,-500.0,0.00018879,2]
[337682339,1725952887336,-500.0,0.00018879,2]
[337682340,1725952887359,-380.34966736,0.00018879,2]
[337682341,1725952887381,-152.94155857,0.00018879,2]
[337682342,1725952887404,-500.0,0.00018879,2]
[337682343,1725952887425,-261.99584569,0.00018879,2]
[337682344,1725952887447,-338.52890671,0.00018879,2]
[337682345,1725952887469,-500.0,0.00018879,2]
[337682346,1725952887491,-439.26788837,0.00018879,2]
[337682347,1725952887514,-500.0,0.00018879,2]
[337682348,1725952887538,-624.9584062,0.00018879,2]
[337682349,1725952887566,-225383.427129,0.0001888,2]
[337682350,1725952887589,-235709.680904,0.0001888,3]
[337682351,1725952887614,-183447.87054605,0.0001889,2]
[337682352,1725952887642,-112691.713564,0.0001899,3]
[337682353,1725952887664,-117854.840452,0.0001899,3]
[337682354,1725952887686,-154.542859,0.0001899,2]
[337682355,1725952887707,-447.704888,0.0001899,2]
[337682356,1725952887730,-151.0,0.0001899,2]
[337682357,1725952887753,-447.704888,0.0001899,2]
[337682358,1725952887779,-151.0,0.0001899,2]
[337682359,1725952887802,-151.0,0.0001899,2]
[337682360,1725952887822,-151.0,0.0001899,2]
[337682361,1725952887843,-1134.521204,0.0001899,2]
[337682362,1725952887866,-1134.521204,0.0001899,2]
[337682363,1725952887887,-151.0,0.0001899,2]
[337682364,1725952887909,-701.215932,0.0001899,2]
[337682365,1725952887930,-333.984514,0.0001899,2]
[337682366,1725952887951,-701.215932,0.0001899,2]
[337682367,1725952887974,-333.984514,0.0001899,2]
[337682368,1725952887995,-151.0,0.0001899,2]
[337682369,1725952888016,-193.414721,0.0001899,2]
[337682370,1725952888037,-5182.270233,0.00019,2]
[337682371,1725952888059,-1000.0,0.00019138,2]
[337682372,1725952888081,-151.0,0.00019228,2]
[337682373,1725952888102,-154.540177,0.00019228,2]
[337682374,1725952888125,-208.2649181,0.00019342,2]
[337682375,1725952888148,-208.2649181,0.00019342,2]
[337682376,1725952888171,-208.2649181,0.00019342,2]
[337682377,1725952888192,-500.0,0.00019386,2]
[337682378,1725952888214,-10364.540466,0.000195,2]
[337682379,1725952888241,-91146.6436687,0.0001999,3]
[337682381,1725952916227,-4419.63348369,0.0001878,2]
[337682382,1725952916249,-500.0,0.00018873,2]
[337682383,1725952916270,-151.0,0.0001899,2]
[337682384,1725952916293,-903.344768,0.0001899,2]
[337682385,1725952916316,-4419.63348362,0.00019762,2]
[337682386,1725952916339,-26708.1967833,0.0001999,3]
[337682387,1725952916363,-447.704888,0.0001999,2]
[337682388,1725952916384,-151.0,0.0001999,2]
[337682389,1725952916407,-447.704888,0.0001999,2]
[337682390,1725952916428,-151.0,0.0001999,2]
[337682391,1725952916451,-151.0,0.0001999,2]
[337682392,1725952916473,-151.0,0.0001999,2]
[337682393,1725952916498,-1134.521204,0.0001999,2]
[337682394,1725952916520,-1134.521204,0.0001999,2]
[337682395,1725952916543,-153.798017,0.0001999,2]
[337682396,1725952916569,-701.215932,0.0001999,2]
[337682397,1725952916591,-333.984514,0.0001999,2]
[337682398,1725952916614,-701.215932,0.0001999,2]
[337682399,1725952916637,-333.984514,0.0001999,2]
[337682400,1725952916659,-151.0,0.0001999,2]
[337682401,1725952916682,-151.0,0.0001999,2]
[337682402,1725952916703,-8042.29794815,0.00019999,2]
[337682403,1725952916730,-9654.5277257,0.0002,2]
[337682404,1725952916751,-151.0,0.0002,2]
[337682405,1725952916952,-151.0,0.0002,2]
[337682406,1725952916980,-242.182312,0.0002,2]
[337682407,1725952917003,-151.0,0.0002,2]
[337682408,1725952917027,-650.092288,0.0002,2]
[337682409,1725952917049,-151.0,0.0002,2]
[337682410,1725952917072,-151.0,0.0002,2]
[337682411,1725952917094,-151.0,0.0002,2]
[337682412,1725952917117,-151.0,0.0002,2]
[337682413,1725952917140,-151.0,0.0002,2]
[337682414,1725952917164,-151.0,0.0002,2]
[337682415,1725952917186,-6186.95914241,0.0002,2]
[337682416,1725952917209,-1000.0,0.0002,2]
[337682418,1725952917231,-200.27,0.00020001,2]
[337682419,1725952917253,-497.81066595,0.00020127,2]
[337682420,1725952917275,-152573.86286341,0.00020173,2]
[337682421,1725952917297,-151.0,0.00020173,2]
[337682422,1725952917319,-151.0,0.00020173,2]
[337682423,1725952917340,-151.0,0.00020173,2]
[337682424,1725952917362,-151.0,0.00020173,2]
[337682425,1725952917383,-151.0,0.00020173,2]
[337682426,1725952917405,-650.092288,0.00020173,2]
[337682427,1725952917427,-650.092288,0.00020173,2]
[337682428,1725952917448,-152.182407,0.00020173,2]
[337682429,1725952917468,-152.107353,0.00020173,2]
[337682430,1725952917489,-152.744307,0.00020173,2]
[337682431,1725952917510,-152.319445,0.00020173,2]
[337682432,1725952917530,-153.52544,0.00020173,2]
[337682433,1725952917552,-151.0,0.00020173,2]
[337682434,1725952917578,-151.0,0.00020173,2]
[337682435,1725952917601,-151.0,0.00020173,2]
[337682436,1725952917622,-151.0,0.00020173,2]
[337682437,1725952917647,-151.0,0.00020173,2]
[337682438,1725952917669,-151.0,0.00020173,2]
[337682439,1725952917691,-151.0,0.00020173,2]
[337682440,1725952917714,-151.0,0.00020173,2]
[337682441,1725952917736,-945.247569,0.00020173,2]
[337682442,1725952917758,-945.247569,0.00020173,2]
[337682443,1725952917779,-151.0,0.00020173,2]
[337682444,1725952917802,-151.0,0.00020173,2]
[337682445,1725952917825,-151.0,0.00020173,2]
[337682446,1725952917847,-614.39452,0.00020173,2]
[337682447,1725952917870,-614.39452,0.00020173,2]
[337682448,1725952917891,-291.0342,0.00020173,2]
[337682449,1725952917912,-291.0342,0.00020173,2]
[337682450,1725952917935,-728.493566,0.00020173,2]
[337682451,1725952917958,-728.493566,0.00020173,2]
[337682452,1725952917982,-151.0,0.00020173,2]
[337682453,1725952918003,-598.671382,0.00020173,2]
[337682454,1725952918038,-598.671382,0.00020173,2]
[337682455,1725952918078,-151.0,0.00020173,2]
[337682456,1725952918116,-151.0,0.00020173,2]
[337682457,1725952918157,-1127.493016,0.00020173,2]
[337682458,1725952918194,-151.0,0.00020173,2]
[337682459,1725952918226,-1127.493016,0.00020173,2]
[337682460,1725952918261,-345.604662,0.00020173,2]
[337682461,1725952918298,-345.604662,0.00020173,2]
[337682462,1725952918328,-463.53704,0.00020173,2]
[337682463,1725952918364,-463.53704,0.00020173,2]
[337682464,1725952918395,-447.704888,0.00020173,2]
[337682465,1725952918425,-151.0,0.00020173,2]
[337682466,1725952918459,-447.704888,0.00020173,2]
[337682467,1725952918491,-151.0,0.00020173,2]
[337682468,1725952918522,-151.0,0.00020173,2]
[337682469,1725952918558,-1134.521204,0.00020173,2]
[337682470,1725952918593,-1134.521204,0.00020173,2]
[337682471,1725952918625,-701.215932,0.00020173,2]
[337682472,1725952918659,-333.984514,0.00020173,2]
[337682473,1725952918692,-701.215932,0.00020173,2]
[337682474,1725952918725,-333.984514,0.00020173,2]
[337682475,1725952918758,-151.0,0.00020173,2]
[337682476,1725952918790,-169.819272,0.00020173,2]
[337682477,1725952918986,903.344768,0.0001999,2]
[337682478,1725952919093,903.344768,0.00020173,2]
[337682479,1725952920389,903.344768,0.0001899,2]
[337682480,1725952920452,903.344768,0.0001999,2]
[337682481,1725952920790,903.344768,0.00020173,2]
[337682482,1725952923105,151.0,0.0001899,2]
[337682483,1725952923441,151.0,0.0001999,2]
[337682484,1725952923752,57.12581677,0.00020173,2]
[337682489,1725953016492,5000.0,0.0001701,2]
[337682490,1725953024437,5000.0,0.0001701,2]
[337682491,1725953032410,5000.0,0.0001701,2]
[337682492,1725953040557,5000.0,0.0001701,2]
[337682493,1725953049298,5000.0,0.0001701,2]
[337682494,1725953057663,5000.0,0.0001701,2]
[337682495,1725953066262,5000.0,0.0001701,2]
[337682496,1725953075013,5000.0,0.0001701,2]